bitfinex-derivatives/quotes_BTCF0:USTF0_20241213
["timestamp","ask_amount","ask_price","bid_price","bid_amount"]
[1734105223820,0.43054387,100050.0,100030.0,0.410775]
[1734105224027,0.00881748,100040.0,100030.0,0.410775]
[1734105224233,0.07024387,100050.0,100030.0,0.410775]
[1734105224437,0.00883173,100040.0,100030.0,0.63283149]
[1734105224729,0.050469,100050.0,100040.0,0.049972]
[1734105224926,0.0005,100050.0,100040.0,0.410772]
[1734105225525,0.050467,100050.0,100040.0,0.410772]
[1734105225728,0.050467,100050.0,100040.0,0.3608]
[1734105226231,0.050467,100050.0,100030.0,0.001]
[1734105226232,0.63332349,100050.0,100030.0,0.001]
[1734105226535,0.64183192,100040.0,100000.0,0.29613748]
[1734105226839,0.3608,100010.0,99980.0,0.3]
[1734105227027,0.3608,100010.0,99999.0,0.049993]
[1734105227224,0.3608,100020.0,100010.0,0.049987]
[1734105227429,0.0005,100050.0,100030.0,0.049977]
[1734105227637,0.0005,100050.0,100040.0,0.049972]
[1734105228325,0.0005,100050.0,100040.0,0.93282849]
[1734105228724,0.0005,100050.0,100040.0,0.63282849]
[1734105228928,0.0005,100050.0,100040.0,0.93282849]
[1734105229230,0.0005,100050.0,100040.0,0.410772]
[1734105229531,0.0005,100050.0,100040.0,0.93282849]
[1734105229926,0.0005,100050.0,100040.0,2.13282849]
[1734105230328,0.0025,100050.0,100040.0,2.13282849]
[1734105231027,0.0005,100050.0,100040.0,2.43282849]
[1734105231223,0.0005,100050.0,100040.0,2.43682849]
[1734105231427,0.050467,100050.0,100040.0,0.3648]
[1734105231623,0.050467,100050.0,100040.0,0.004]
[1734105232629,0.0005,100050.0,100040.0,0.27602849]
[1734105232833,0.0005,100050.0,100040.0,0.63682849]
[1734105233734,0.0005,100050.0,100040.0,0.93682849]
[1734105234131,0.1071,100070.0,100060.0,0.049958]
[1734105234344,0.1071,100070.0,100060.0,0.63281449]
[1734105234526,0.410745,100090.0,100070.0,0.049953]
[1734105234730,0.149939,100100.0,100080.0,0.63280449]
[1734105234935,0.0089915,100090.0,100080.0,0.410748]
[1734105235232,0.00057,100090.0,100070.0,0.3608]
[1734105235427,0.049948,100080.0,100070.0,0.3608]
[1734105235631,0.049948,100080.0,100070.0,0.410753]
[1734105236030,0.050514,100090.0,100070.0,0.68275849]
[1734105236239,0.00057,100090.0,100080.0,0.410748]
[1734105236432,0.00057,100090.0,100080.0,0.63280449]
[1734105238330,0.00057,100090.0,100080.0,0.93380449]
[1734105238331,0.00157,100090.0,100080.0,0.93380449]
[1734105238933,0.00157,100090.0,100080.0,1.30316449]
[1734105239134,0.11,100130.0,100120.0,0.049928]
[1734105239434,0.17000092,100140.0,100120.0,0.63278449]
[1734105239639,0.00900226,100130.0,100120.0,0.63278149]
[1734105239843,0.12008192,100140.0,100120.0,2.13278049]
[1734105240031,0.1081,100140.0,100130.0,0.63277949]
[1734105240344,0.1081,100140.0,100130.0,0.410723]
[1734105240345,0.10827,100140.0,100130.0,0.410723]
[1734105240530,0.10827,100140.0,100130.0,0.63277949]
[1734105240731,0.00017,100140.0,100130.0,0.63277949]
[1734105241040,0.050088,100140.0,100130.0,0.3608]
[1734105241238,0.049923,100130.0,100120.0,0.00128]
[1734105241439,0.049923,100130.0,100110.0,0.410733]
[1734105241638,0.049923,100130.0,100110.0,0.63278949]
[1734105241844,0.410889,100140.0,100120.0,0.22205649]
[1734105242035,0.410889,100140.0,100130.0,0.001]
[1734105242036,0.050089,100140.0,100130.0,0.001]
[1734105242233,0.410889,100140.0,100130.0,0.001]
[1734105242438,0.63294549,100140.0,100110.0,0.3608]
[1734105242738,0.163624,100130.0,100110.0,0.58285649]
[1734105242936,0.410889,100140.0,100120.0,0.58285649]
[1734105243134,0.410889,100140.0,100120.0,0.63278249]
[1734105243633,0.410889,100140.0,100110.0,0.3608]
[1734105243835,0.049928,100120.0,100100.0,0.3608]
[1734105244134,0.049933,100110.0,100100.0,0.3608]
[1734105244333,0.049933,100110.0,100090.0,0.63279549]
[1734105244633,0.4681,100120.0,100100.0,0.22205649]
[1734105244841,0.410724,100130.0,100110.0,0.27198949]
[1734105245038,0.46827,100140.0,100120.0,0.58285649]
[1734105245340,0.36097,100140.0,100120.0,0.58285649]
[1734105245541,0.050088,100140.0,100120.0,0.410727]
[1734105245842,0.049923,100130.0,100110.0,0.3608]
[1734105246144,0.049923,100130.0,100110.0,0.27199149]
[1734105246145,0.049929,100130.0,100110.0,0.27199149]
[1734105246339,0.3608,100130.0,100110.0,0.63279149]
[1734105246541,0.410729,100130.0,100100.0,0.410741]
[1734105246736,0.518829,100130.0,100100.0,0.710741]
[1734105246943,0.518829,100130.0,100120.0,0.001]
[1734105247144,0.518829,100130.0,100100.0,0.63279749]
[1734105247540,0.4689,100130.0,100120.0,0.22205649]
[1734105247745,0.3618,100130.0,100120.0,0.049932]
[1734105248041,0.001,100130.0,100110.0,0.58285649]
[1734105248237,0.411727,100130.0,100110.0,0.410737]
[1734105248437,0.43072354,100140.0,100110.0,0.410737]
[1734105248633,0.001,100130.0,100120.0,0.63278749]
[1734105249145,0.411727,100130.0,100110.0,0.049936]
[1734105249444,0.3618,100130.0,100120.0,0.049932]
[1734105249741,0.050927,100130.0,100110.0,0.049936]
[1734105250043,0.050927,100130.0,100110.0,1.549936]
[1734105250235,0.049927,100130.0,100110.0,1.549936]
[1734105250441,0.412727,100130.0,100110.0,1.5]
[1734105251040,0.051927,100130.0,100110.0,1.549936]
[1734105251341,0.413727,100130.0,100110.0,1.911736]
[1734105251767,0.3638,100130.0,100110.0,1.8618]
[1734105251941,0.003,100130.0,100110.0,1.8618]
[1734105252142,0.3638,100130.0,100110.0,0.001]
[1734105252335,0.410732,100120.0,100110.0,0.001]
[1734105252654,0.049943,100100.0,100080.0,1.910751]
[1734105253143,0.410743,100100.0,100080.0,1.549951]
[1734105253539,0.00074,100100.0,100090.0,0.049944]
[1734105254147,0.00074,100100.0,100080.0,0.006]
[1734105254347,0.36154,100100.0,100080.0,0.055951]
[1734105254651,0.36154,100100.0,100090.0,0.049947]
[1734105255041,0.36154,100100.0,100090.0,0.053947]
[1734105255343,0.00074,100100.0,100090.0,0.053947]
[1734105256953,0.00074,100100.0,100090.0,0.27600349]
[1734105257153,0.00074,100100.0,100090.0,0.053947]
[1734105258956,0.411482,100100.0,100090.0,0.004]
[1734105259845,0.00074,100100.0,100090.0,0.19769094]
[1734105260351,0.08783234,100120.0,100090.0,2.35849094]
[1734105260555,0.79115191,100140.0,100120.0,0.049928]
[1734105260556,0.38202763,100140.0,100120.0,0.049928]
[1734105260754,0.00887353,100130.0,100120.0,0.410728]
[1734105261055,0.62571784,100140.0,100120.0,0.410728]
[1734105261358,0.00888096,100130.0,100120.0,0.410728]
[1734105261647,0.00034,100130.0,100120.0,0.410728]
[1734105263051,0.00034,100130.0,100120.0,0.411728]
[1734105263740,0.00034,100130.0,100120.0,0.410728]
[1734105263948,0.00334,100130.0,100120.0,0.410728]
[1734105264654,0.09117234,100130.0,100120.0,0.410728]
[1734105264954,0.00334,100130.0,100120.0,0.410728]
[1734105265150,0.00334,100130.0,100120.0,0.55447194]
[1734105265741,0.00334,100130.0,100120.0,2.05447194]
[1734105265948,0.00334,100130.0,100120.0,2.35447194]
[1734105267259,0.00334,100130.0,100120.0,2.49821588]
[1734105267445,0.20494213,100150.0,100140.0,0.049922]
[1734105267647,0.08783234,100150.0,100140.0,0.55446594]
[1734105267848,0.20494213,100160.0,100140.0,0.85446594]
[1734105268047,0.20494213,100160.0,100150.0,0.55446094]
[1734105268553,0.20525213,100160.0,100150.0,0.55446094]
[1734105268758,0.08814234,100160.0,100150.0,0.55446094]
[1734105269455,0.08798494,100160.0,100150.0,0.99820488]
[1734105269659,0.32205191,100180.0,100150.0,0.99820488]
[1734105269660,0.26349702,100190.0,100170.0,0.049907]
[1734105269953,0.00877606,100180.0,100170.0,0.049907]
[1734105270157,0.52780779,100190.0,100170.0,0.049907]
[1734105270348,0.00875281,100180.0,100170.0,0.049907]
[1734105270544,0.52780779,100190.0,100170.0,0.049907]
[1734105270756,0.00874712,100180.0,100170.0,0.049907]
[1734105270954,0.52780779,100190.0,100170.0,0.049907]
[1734105271153,0.00877313,100180.0,100170.0,0.410707]
[1734105271354,0.47790979,100190.0,100170.0,1.549907]
[1734105271551,0.00876675,100180.0,100170.0,1.549907]
[1734105271752,0.52780779,100190.0,100170.0,1.549907]
[1734105271948,0.00876542,100180.0,100170.0,1.549907]
[1734105272149,0.52780779,100190.0,100170.0,1.549907]
[1734105272361,0.00876015,100180.0,100170.0,1.549907]
[1734105272554,0.410698,100190.0,100170.0,1.549907]
[1734105272753,0.00875394,100180.0,100170.0,1.550907]
[1734105272958,0.52780779,100190.0,100170.0,1.550907]
[1734105273152,0.410698,100190.0,100170.0,1.550907]
[1734105273348,0.00875655,100180.0,100170.0,0.050907]
[1734105273549,0.3608,100190.0,100170.0,0.050907]
[1734105273750,0.00875186,100180.0,100170.0,0.050907]
[1734105274062,0.00875186,100180.0,100170.0,0.001]
[1734105274063,0.410702,100180.0,100170.0,0.001]
[1734105274450,0.3608,100180.0,100170.0,0.050907]
[1734105275164,0.410702,100180.0,100170.0,0.001]
[1734105275356,0.3608,100180.0,100170.0,0.050907]
[1734105276763,0.3608,100180.0,100170.0,0.19465094]
[1734105276949,0.3608,100180.0,100170.0,1.69465094]
[1734105277256,0.3608,100180.0,100170.0,0.050907]
[1734105277958,0.3608,100180.0,100170.0,0.001]
[1734105278160,0.410702,100180.0,100170.0,0.001]
[1734105278748,0.049902,100180.0,100170.0,0.001]
[1734105278953,0.410699,100190.0,100170.0,0.050905]
[1734105279255,0.00877,100180.0,100170.0,0.050905]
[1734105279458,0.410699,100190.0,100170.0,0.050905]
[1734105279658,0.00873936,100180.0,100170.0,0.050905]
[1734105279851,0.3608,100190.0,100180.0,0.049902]
[1734105280057,0.410697,100190.0,100170.0,0.050905]
[1734105280658,0.3608,100180.0,100170.0,0.050905]
[1734105280859,0.410697,100190.0,100170.0,0.099809]
[1734105281061,0.410697,100190.0,100170.0,0.050904]
[1734105281356,0.410697,100190.0,100170.0,0.100808]
[1734105281568,0.410697,100190.0,100170.0,0.050904]
[1734105281569,0.3608,100180.0,100170.0,0.050904]
[1734105281754,0.55454964,100180.0,100140.0,0.3608]
[1734105281954,0.049912,100160.0,100150.0,0.049916]
[1734105282358,0.049925,100140.0,100120.0,0.05388583]
[1734105282559,0.410727,100130.0,100120.0,0.05388583]
[1734105282761,0.410727,100130.0,100120.0,0.00246]
[1734105282964,0.410727,100130.0,100120.0,0.00256357]
[1734105283167,0.410727,100130.0,100120.0,0.05249557]
[1734105283372,0.410727,100130.0,100120.0,0.00256357]
[1734105283573,0.049936,100120.0,100100.0,1.54994]
[1734105283860,0.771537,100110.0,100100.0,0.04994]
[1734105284659,0.7216,100110.0,100100.0,0.19378473]
[1734105284868,0.7216,100110.0,100100.0,0.05004079]
[1734105286364,0.186533,100120.0,100110.0,0.049937]
[1734105286365,0.3608,100120.0,100110.0,0.049937]
[1734105287071,0.685428,100130.0,100110.0,0.049937]
[1734105287276,0.3608,100120.0,100110.0,0.049937]
[1734105287462,0.3628,100120.0,100110.0,0.049937]
[1734105288268,0.412735,100120.0,100100.0,0.05004179]
[1734105288571,0.412735,100120.0,100100.0,0.09997679]
[1734105288875,0.412735,100120.0,100100.0,0.05003879]
[1734105289571,0.3608,100110.0,100100.0,0.05003879]
[1734105289769,0.3608,100110.0,100100.0,1.55003879]
[1734105290279,0.3608,100120.0,100110.0,0.049937]
[1734105291069,0.6355,100130.0,100120.0,0.049932]
[1734105292674,0.6355,100130.0,100100.0,1.69378273]
[1734105292675,0.049936,100120.0,100100.0,0.05004179]
[1734105292867,0.410737,100110.0,100100.0,0.00010079]
[1734105293065,0.771537,100110.0,100100.0,1.50010079]
[1734105293574,0.049946,100100.0,100080.0,0.049951]
[1734105293875,0.5027,100100.0,100090.0,0.049947]
[1734105294175,0.5027,100100.0,100080.0,0.049951]
[1734105294367,0.3608,100090.0,100080.0,0.049951]
[1734105294572,0.3609071,100090.0,100080.0,0.049951]
[1734105294975,0.0001071,100090.0,100080.0,0.049951]
[1734105295272,0.3609071,100090.0,100080.0,0.049951]
[1734105296475,0.0001071,100090.0,100080.0,0.049951]
[1734105296678,0.0001071,100090.0,100070.0,2.00604234]
[1734105296679,0.4118551,100090.0,100070.0,1.5514544]
[1734105296879,0.3608,100080.0,100070.0,1.5514544]
[1734105297768,0.3608,100080.0,100070.0,1.5014984]
[1734105297985,0.55449594,100080.0,100070.0,0.0014984]
[1734105298476,0.55449594,100080.0,100050.0,9.333e-05]
[1734105298477,0.049958,100070.0,100050.0,0.05005933]
[1734105298681,0.5051,100070.0,100050.0,9.333e-05]
[1734105298870,0.555057,100070.0,100050.0,0.05005933]
[1734105299074,0.3608,100060.0,100050.0,0.05005933]
[1734105300271,0.3608,100070.0,100060.0,0.049962]
[1734105300579,0.410759,100070.0,100050.0,0.05705933]
[1734105300777,0.410762,100060.0,100050.0,0.00709333]
[1734105300980,0.84819001,100060.0,100050.0,0.00709333]
[1734105301284,0.84819001,100060.0,100040.0,1.5]
[1734105301472,0.410767,100050.0,100040.0,1.5]
[1734105301676,0.55451094,100050.0,100030.0,0.049976]
[1734105301983,0.3608,100040.0,100030.0,0.049976]
[1734105302883,0.55451594,100040.0,100030.0,1.5]
[1734105303090,0.049978,100030.0,100010.0,0.0514855]
[1734105303285,0.36089939,100020.0,100010.0,0.0514855]
[1734105303585,0.36089939,100020.0,100010.0,1.5014995]
[1734105303889,0.36089939,100020.0,100010.0,1.5514865]
[1734105304178,9.939e-05,100020.0,100010.0,2.35603044]
[1734105304576,0.002,100030.0,100020.0,0.049982]
[1734105304778,0.002,100030.0,100020.0,0.55452594]
[1734105304978,0.002,100030.0,100020.0,0.710782]
[1734105305180,0.002,100030.0,100020.0,0.85452594]
[1734105305382,0.6408,100060.0,100040.0,0.049968]
[1734105305580,0.36087055,100050.0,100040.0,0.049968]
[1734105305775,0.049976,100040.0,100010.0,0.0514865]
[1734105305977,0.3608,100020.0,100010.0,1.5014995]
[1734105306284,0.36088547,100020.0,100010.0,1.5014995]
[1734105306677,0.36088547,100020.0,100010.0,1.5]
[1734105307575,8.547e-05,100020.0,100010.0,1.69373094]
[1734105307777,0.36088547,100020.0,100010.0,1.69373094]
[1734105307978,8.547e-05,100020.0,100010.0,1.69373094]
[1734105308382,0.36088547,100020.0,100010.0,1.5]
[1734105308583,0.41086747,100020.0,100010.0,1.5]
[1734105309086,0.55396747,100020.0,100000.0,0.10059431]
[1734105309279,0.3608,100010.0,100000.0,0.10059431]
[1734105309783,0.3608,100010.0,100000.0,1.60059431]
[1734105310090,0.55496747,100020.0,100000.0,0.24433825]
[1734105310091,0.50398547,100020.0,100000.0,0.24433825]
[1734105310295,0.50398547,100020.0,100010.0,0.050987]
[1734105310676,0.55396747,100020.0,100010.0,0.001]
[1734105310882,0.55396747,100020.0,100000.0,0.10059431]
[1734105311086,0.411787,100010.0,100000.0,0.10359431]
[1734105311289,0.411787,100010.0,100000.0,1.60359431]
[1734105311496,0.411787,100010.0,100000.0,0.10359431]
[1734105312196,0.411787,100010.0,100000.0,0.10309431]
[1734105312491,0.411787,100010.0,100000.0,0.10009431]
[1734105312492,0.410787,100010.0,100000.0,0.10009431]
[1734105313388,0.410787,100010.0,100000.0,0.10109431]
[1734105313389,0.411787,100010.0,100000.0,0.10109431]
[1734105313890,0.262487,100010.0,100000.0,0.10109431]
[1734105314082,0.049968,100050.0,100010.0,0.099974]
[1734105314285,0.38987015,100040.0,100010.0,0.3608]
[1734105314488,0.43120405,100040.0,100020.0,0.04998]
[1734105314892,0.44809366,100050.0,100040.0,0.049972]
[1734105315084,0.14951185,100050.0,100040.0,0.049972]
[1734105315487,0.15451185,100050.0,100040.0,0.049972]
[1734105315682,0.15451185,100050.0,100040.0,0.19371594]
[1734105315990,0.15451185,100050.0,100040.0,0.410772]
[1734105317296,0.14951185,100050.0,100040.0,0.051972]
[1734105317495,0.19947885,100050.0,100040.0,0.002]
[1734105318296,0.18095885,100050.0,100040.0,0.002]
[1734105318886,0.13199185,100050.0,100040.0,0.410772]
[1734105319292,0.13199185,100050.0,100040.0,0.55451594]
[1734105319592,0.13199185,100050.0,100040.0,0.410772]
[1734105319796,0.13199185,100050.0,100040.0,1.910772]
[1734105320096,0.13099185,100050.0,100040.0,1.910772]
[1734105320298,0.13599185,100050.0,100040.0,1.910772]
[1734105321593,0.13599185,100050.0,100040.0,1.549972]
[1734105322098,0.049972,100040.0,100030.0,0.3608]
[1734105323695,0.13199185,100050.0,100040.0,0.049972]
[1734105323891,0.13199185,100050.0,100040.0,0.410772]
[1734105324291,0.00111185,100050.0,100040.0,2.49825988]
[1734105324499,0.62231561,100090.0,100070.0,0.049953]
[1734105324500,0.212948,100090.0,100070.0,0.049953]
[1734105324795,0.212948,100090.0,100050.0,0.049967]
[1734105324796,0.049961,100070.0,100050.0,0.470966]
[1734105324994,0.410761,100070.0,100050.0,0.410766]
[1734105325194,0.00877602,100060.0,100050.0,0.410766]
[1734105325392,0.00011545,100060.0,100050.0,0.410766]
[1734105325594,0.00011545,100060.0,100050.0,0.049966]
[1734105325794,0.00011545,100060.0,100050.0,0.410766]
[1734105326196,0.05007945,100060.0,100040.0,1.91355028]
[1734105326403,0.05886665,100050.0,100040.0,0.40603549]
[1734105326697,0.209967,100050.0,100040.0,0.04523549]
[1734105326891,0.209967,100050.0,100040.0,0.00149928]
[1734105327498,0.209967,100050.0,100030.0,0.410776]
[1734105327691,0.00891292,100040.0,100030.0,0.45451443]
[1734105327889,0.209967,100050.0,100030.0,0.45451443]
[1734105328199,0.202629,100040.0,100030.0,0.40453843]
[1734105328403,0.049972,100040.0,100030.0,0.40453843]
[1734105329500,0.049972,100040.0,100030.0,0.3608]
[1734105329697,0.052972,100040.0,100030.0,0.3608]
[1734105330090,0.049977,100030.0,100020.0,0.58978986]
[1734105330295,0.049977,100030.0,100020.0,0.63224872]
[1734105330498,0.049977,100030.0,100020.0,0.58850986]
[1734105331207,0.049977,100030.0,100020.0,0.53852886]
[1734105331502,0.049977,100030.0,100020.0,0.3608]
[1734105332098,0.050977,100030.0,100020.0,0.410782]
[1734105332797,0.049977,100030.0,100020.0,0.45452637]
[1734105332990,0.050977,100030.0,100020.0,0.45452637]
[1734105333599,0.050977,100030.0,100020.0,0.410782]
[1734105333901,0.050977,100030.0,100020.0,0.58851086]
[1734105334703,0.050977,100030.0,100020.0,0.53852886]
[1734105335600,0.19472094,100030.0,100020.0,0.53852886]
[1734105335798,0.050977,100030.0,100020.0,0.53852886]
[1734105336098,0.050977,100030.0,100020.0,0.3608]
[1734105336303,0.19472094,100030.0,100020.0,0.3608]
[1734105337200,0.049982,100020.0,100010.0,2.09909182]
[1734105337405,0.19384139,100020.0,100010.0,0.64775882]
[1734105337605,0.19384139,100020.0,100000.0,0.51619688]
[1734105337606,0.71944139,100020.0,100000.0,0.51619688]
[1734105337793,0.56360428,100010.0,100000.0,0.33706613]
[1734105338101,0.55453094,100010.0,100000.0,0.10009431]
[1734105338292,0.55453094,100010.0,99994.0,0.17915529]
[1734105338492,0.55453094,100010.0,99989.0,0.23847168]
[1734105338493,0.00907157,100000.0,99998.0,0.049993]
[1734105338699,0.049993,99998.0,99993.0,0.17915529]
[1734105338904,0.00907157,99997.0,99996.0,0.17915529]
[1734105339095,0.17175441,100010.0,100000.0,0.049992]
[1734105339291,0.1526,100010.0,100000.0,0.59287964]
[1734105339495,0.050987,100010.0,100000.0,0.69451964]
[1734105339698,0.050987,100010.0,100000.0,0.54286005]
[1734105339893,0.050987,100010.0,100000.0,0.58661554]
[1734105340099,0.049987,100010.0,100000.0,0.58361554]
[1734105340295,0.19373094,100010.0,100000.0,0.3608]
[1734105340503,0.14374394,100010.0,99996.0,0.003]
[1734105340705,0.049993,99998.0,99996.0,1.68206005]
[1734105340901,0.049993,99998.0,99997.0,0.17906005]
[1734105341302,0.049993,99998.0,99996.0,0.003]
[1734105341606,0.049994,99996.0,99995.0,0.17902912]
[1734105341903,0.049994,99996.0,99995.0,0.04375875]
[1734105342102,0.049994,99996.0,99995.0,0.17902912]
[1734105342296,0.01176411,99998.0,99995.0,0.17902912]
[1734105342500,0.22892641,100010.0,99997.0,0.049993]
[1734105342707,0.17893841,100010.0,99999.0,0.17901973]
[1734105343009,0.1587,100010.0,100000.0,0.65347935]
[1734105343508,0.1587,100010.0,100000.0,0.43070776]
[1734105343897,0.1587,100010.0,100000.0,0.60978397]
[1734105344100,0.1587,100010.0,100000.0,0.37281215]
[1734105344303,0.1587,100010.0,100000.0,0.19373594]
[1734105344699,0.1587,100010.0,100000.0,0.37281215]
[1734105344902,0.1587,100010.0,100000.0,0.33071177]
[1734105345103,0.1587,100010.0,100000.0,0.41602274]
[1734105345104,0.208687,100010.0,100000.0,0.41602274]
[1734105345505,0.208687,100010.0,100000.0,0.001]
[1734105345901,0.35243094,100010.0,100000.0,0.001]
[1734105346103,0.049994,99997.0,99996.0,0.3608]
[1734105346607,0.049994,99997.0,99983.0,0.17905092]
[1734105346608,0.0146779,99997.0,99983.0,0.17905092]
[1734105346810,0.05,99985.0,99983.0,0.17905092]
[1734105347000,0.05,99985.0,99984.0,0.23697182]
[1734105347306,0.05,99985.0,99983.0,0.23866824]
[1734105347508,0.05,99985.0,99982.0,0.23866824]
[1734105347708,0.71323094,100010.0,99983.0,0.04376166]
[1734105347709,0.05,99984.0,99983.0,0.04376166]
[1734105348100,0.05,99984.0,99983.0,0.23862854]
[1734105348309,0.2200896,100010.0,99996.0,0.002]
[1734105348611,0.22018048,100010.0,99998.0,0.3608]
[1734105348812,0.15879088,100010.0,100000.0,1.64374394]
[1734105349113,0.15879088,100010.0,100000.0,1.8664722]
[1734105349799,0.15879088,100010.0,100000.0,2.10510859]
[1734105350002,0.02049768,100020.0,100000.0,2.15609659]
[1734105350212,0.02049768,100020.0,100010.0,0.3608]
[1734105350903,0.02061656,100020.0,100010.0,0.3608]
[1734105351504,0.00011888,100020.0,100010.0,0.3608]
[1734105352102,0.05010088,100020.0,100010.0,0.53977729]
[1734105352311,0.05110088,100020.0,100000.0,1.91889368]
[1734105352513,0.049987,100010.0,100000.0,0.22275332]
[1734105352815,0.049987,100010.0,100000.0,0.17900423]
[1734105353409,0.049987,100010.0,99999.0,0.17900423]
[1734105353410,0.049992,100000.0,99999.0,0.17900423]
[1734105353611,0.19373094,100010.0,99995.0,0.23863639]
[1734105353808,0.049997,99991.0,99990.0,0.3608]
[1734105355116,0.214493,99999.0,99990.0,0.3608]
[1734105355314,0.049994,99997.0,99990.0,0.3608]
[1734105355506,0.001,99991.0,99990.0,0.3628]
[1734105355714,0.050997,99991.0,99990.0,0.3628]
[1734105356317,0.049997,99991.0,99990.0,0.3628]
[1734105356517,0.049997,99991.0,99990.0,0.002]
[1734105356707,0.00912231,99991.0,99970.0,9.467e-05]
[1734105356915,0.050007,99971.0,99970.0,9.467e-05]
[1734105357707,0.3608,99982.0,99970.0,9.467e-05]
[1734105357920,0.050004,99977.0,99970.0,9.467e-05]
[1734105358114,0.050005,99975.0,99970.0,9.467e-05]
[1734105358314,0.050006,99972.0,99970.0,9.467e-05]
[1734105358714,0.001,99971.0,99970.0,0.00209467]
[1734105359315,0.050006,99972.0,99970.0,9.467e-05]
[1734105359615,0.051006,99972.0,99971.0,0.3608]
[1734105360316,0.051006,99972.0,99970.0,0.00209467]
[1734105360920,0.051006,99972.0,99971.0,0.3608]
[1734105360921,0.001,99972.0,99971.0,0.3608]
[1734105361231,0.050004,99976.0,99971.0,0.3608]
[1734105361416,0.0114568,99982.0,99971.0,0.3608]
[1734105361615,0.3608,99989.0,99971.0,0.3608]
[1734105361616,0.050005,99975.0,99971.0,0.3608]
[1734105362009,0.001,99972.0,99971.0,0.3608]
[1734105362523,0.050007,99971.0,99970.0,9.467e-05]
[1734105363215,0.001,99975.0,99970.0,0.36089467]
[1734105364219,0.1163073,100000.0,99974.0,0.3608]
[1734105364417,0.48013554,100020.0,99999.0,0.3608]
[1734105364609,0.00894311,100010.0,100000.0,0.19373294]
[1734105364815,0.32351216,100020.0,100000.0,0.55453294]
[1734105365015,0.207283,100020.0,100010.0,0.3608]
[1734105365220,0.16892584,100020.0,100010.0,0.50454394]
[1734105365424,0.16892584,100020.0,100010.0,0.55452694]
[1734105365425,4.074e-05,100020.0,100010.0,0.55452694]
[1734105365615,4.074e-05,100020.0,100010.0,2.05452694]
[1734105366123,4.074e-05,100020.0,100010.0,2.35452694]
[1734105366317,0.31148961,100040.0,100020.0,0.049982]
[1734105366318,0.11622916,100030.0,100020.0,0.049982]
[1734105366519,0.11622916,100030.0,100020.0,0.55452594]
[1734105366724,0.17761189,100040.0,100030.0,0.049977]
[1734105366911,0.12763889,100040.0,100030.0,0.410777]
[1734105367223,0.049969,100050.0,100030.0,0.54828339]
[1734105367430,0.11622916,100060.0,100040.0,0.55451294]
[1734105367611,0.11622916,100060.0,100050.0,0.55451094]
[1734105367812,0.049962,100060.0,100040.0,0.3608]
[1734105368018,0.049967,100050.0,100040.0,0.3608]
[1734105368211,0.049967,100050.0,100030.0,0.3608]
[1734105368212,0.049972,100040.0,100030.0,0.3608]
[1734105369119,0.055969,100050.0,100030.0,0.3608]
[1734105369328,0.049977,100030.0,100020.0,0.3622995]
[1734105369718,0.049985,100020.0,100000.0,0.94550132]
[1734105370027,0.049985,100020.0,100000.0,0.64928655]
[1734105370320,0.049987,100010.0,100000.0,0.3608]
[1734105370520,0.049987,100010.0,99992.0,0.3608]
[1734105370521,0.049987,100010.0,99999.0,0.049992]
[1734105370928,0.049987,100010.0,99992.0,0.410796]
[1734105371125,0.049992,100000.0,99992.0,0.3608]
[1734105371318,0.3608,100010.0,99992.0,0.3608]
[1734105371319,0.049994,99997.0,99992.0,0.3608]
[1734105371829,0.3608,100010.0,99992.0,0.3608]
[1734105372026,0.41079,100010.0,99992.0,0.3608]
[1734105372324,0.41079,100010.0,99985.0,0.049999]
[1734105372325,0.049994,99996.0,99985.0,0.049999]
[1734105372517,0.3608,99989.0,99973.0,0.29621477]
[1734105372719,0.3608,99989.0,99971.0,0.3608]
[1734105372914,0.050005,99975.0,99971.0,0.3608]
[1734105373126,0.3608,99972.0,99970.0,9.467e-05]
[1734105373326,0.050007,99971.0,99970.0,9.467e-05]
[1734105375521,0.051007,99971.0,99970.0,0.00109467]
[1734105379629,0.3608,99981.0,99970.0,0.00109467]
[1734105379828,0.3608,99986.0,99976.0,0.050004]
[1734105380029,0.05,99984.0,99971.0,0.3608]
[1734105380225,0.3608,99986.0,99970.0,0.00109467]
[1734105380226,0.3608,99976.0,99970.0,0.00109467]
[1734105380440,0.050006,99972.0,99970.0,0.00109467]
[1734105381330,0.3608,99971.0,99970.0,0.00109467]
[1734105381530,0.050016,99952.0,99951.0,0.04376835]
[1734105381731,0.050025,99935.0,99934.0,0.0015009]
[1734105382043,0.050025,99935.0,99920.0,0.0005]
[1734105382044,0.050029,99926.0,99920.0,0.0005]
[1734105382243,0.3608,99926.0,99920.0,0.0005]
[1734105382635,0.050031,99922.0,99920.0,0.0005]
[1734105382939,0.3608,99921.0,99920.0,0.0005]
[1734105383142,0.050039,99906.0,99900.0,0.1]
[1734105383434,0.30451167,99901.0,99900.0,0.1]
[1734105383641,0.410838,99909.0,99900.0,0.1]
[1734105383945,0.3608,99909.0,99900.0,0.1]
[1734105384238,0.3608,99909.0,99877.0,0.35545773]
[1734105384239,0.050051,99883.0,99881.0,0.03671477]
[1734105384430,0.050051,99883.0,99871.0,0.35545773]
[1734105384431,0.3608,99882.0,99870.0,0.14374394]
[1734105384826,0.3608,99882.0,99880.0,0.050052]
[1734105385027,0.3608,99898.0,99880.0,0.050052]
[1734105385028,0.3608,99898.0,99897.0,0.050044]
[1734105385239,9.804e-05,99900.0,99897.0,0.050044]
[1734105386041,0.3608,99925.0,99899.0,0.3608]
[1734105386245,0.14374394,99980.0,99897.0,0.3]
[1734105386246,0.3608,99950.0,99928.0,0.050028]
[1734105386540,0.3608,99950.0,99924.0,0.3608]
[1734105386541,0.3608,99950.0,99940.0,0.14374394]
[1734105386727,0.3608,99950.0,99934.0,0.3608]
[1734105386927,0.3608,99936.0,99915.0,0.050034]
[1734105387126,0.3608,99936.0,99922.0,0.050031]
[1734105387430,0.3608,99936.0,99925.0,0.050029]
[1734105388038,0.36086963,99950.0,99930.0,0.3608]
[1734105388351,0.3608,99940.0,99923.0,0.3608]